bitfinex-derivatives/quotes_BTCF0:USTF0_20240820
["timestamp","ask_amount","ask_price","bid_price","bid_amount"]
[1724163134430,0.3608,60260.0,60258.0,0.066358]
[1724163135033,0.0001413,60265.0,60264.0,0.066352]
[1724163135331,0.3608,60276.0,60264.0,1.2586]
[1724163135631,0.066318,60295.0,60264.0,1.2586]
[1724163135632,0.3608,60294.0,60275.0,0.3608]
[1724163135833,0.3608,60284.0,60277.0,0.066337]
[1724163136030,0.3608,60292.0,60282.0,0.066332]
[1724163136229,0.3608,60292.0,60279.0,0.3608]
[1724163136230,0.3608,60287.0,60279.0,0.3608]
[1724163136532,0.3608,60282.0,60275.0,0.066339]
[1724163136925,0.3608,60287.0,60276.0,0.49768]
[1724163137232,0.00014459,60291.0,60290.0,0.066323]
[1724163137431,0.36094459,60291.0,60283.0,0.06633]
[1724163137625,0.36094459,60291.0,60277.0,0.00024895]
[1724163137626,0.3608,60284.0,60277.0,0.00024895]
[1724163138032,0.36094459,60291.0,60289.0,0.066323]
[1724163138229,0.36094459,60291.0,60282.0,0.3608]
[1724163138438,0.36094459,60291.0,60290.0,0.066323]
[1724163138733,0.00014459,60291.0,60290.0,0.3608]
[1724163138928,0.00014459,60291.0,60290.0,0.4976]
[1724163139122,0.36094459,60291.0,60280.0,0.3608]
[1724163139334,0.3608,60285.0,60284.0,0.06633]
[1724163139630,0.3608,60285.0,60277.0,0.00024895]
[1724163139631,0.3608,60285.0,60282.0,0.066331]
[1724163139835,0.3608,60285.0,60277.0,0.00024895]
[1724163140034,0.36094459,60291.0,60283.0,0.24896284]
[1724163140529,0.36094459,60291.0,60289.0,0.066324]
[1724163140730,0.00014459,60291.0,60289.0,0.066324]
[1724163140933,0.00024895,60296.0,60290.0,1.10736284]
[1724163141131,0.00024895,60296.0,60290.0,1.50736284]
[1724163141327,0.00024895,60296.0,60291.0,0.49756]
[1724163141634,0.00024895,60296.0,60295.0,0.3608]
[1724163141938,0.00038579,60296.0,60295.0,0.3608]
[1724163142138,0.00038579,60296.0,60295.0,1.25836]
[1724163142334,0.3608,60315.0,60303.0,0.066309]
[1724163142524,0.3608,60315.0,60305.0,0.3608]
[1724163142728,0.3608,60315.0,60295.0,0.60943513]
[1724163142729,0.3608,60315.0,60304.0,0.066308]
[1724163143230,0.3608,60309.0,60304.0,0.066308]
[1724163143436,0.427096,60315.0,60302.0,0.3608]
[1724163143437,0.00019968,60308.0,60305.0,0.066307]
[1724163143831,0.00019968,60308.0,60306.0,0.49744]
[1724163144029,0.00019968,60308.0,60305.0,0.066307]
[1724163144224,0.00019968,60308.0,60292.0,0.23212]
[1724163144424,0.3608,60300.0,60290.0,0.3608]
[1724163144825,0.3608,60300.0,60295.0,0.066317]
[1724163145030,0.3608,60300.0,60290.0,0.3608]
[1724163145339,0.3608,60292.0,60281.0,0.066333]
[1724163145636,0.3608,60292.0,60289.0,0.066324]
[1724163146134,0.3608,60292.0,60291.0,0.00024873]
[1724163146534,0.3608,60292.0,60291.0,0.56417073]
[1724163146735,0.3608,60292.0,60291.0,0.06657073]
[1724163147141,0.3608,60292.0,60291.0,0.96417073]
[1724163147339,0.3608,60292.0,60291.0,0.00024873]
[1724163147635,0.3608,60292.0,60285.0,0.00019636]
[1724163147636,0.7216,60292.0,60285.0,0.00019636]
[1724163147827,0.3608,60287.0,60286.0,0.066328]
[1724163148030,0.3608,60292.0,60291.0,0.066322]
[1724163148534,0.3608,60292.0,60291.0,0.563922]
[1724163148736,0.3608,60292.0,60291.0,0.066322]
[1724163148938,0.3608,60292.0,60285.0,0.36099636]
[1724163149132,0.3608,60292.0,60291.0,0.066322]
[1724163149538,0.3608,60292.0,60291.0,0.563922]
[1724163149934,0.3608,60292.0,60291.0,0.963922]
[1724163150440,0.3608,60292.0,60291.0,0.066322]
[1724163150835,0.3608,60292.0,60285.0,0.00044509]
[1724163151036,0.3608,60292.0,60285.0,0.06677309]
[1724163151239,0.066335,60280.0,60260.0,0.3608]
[1724163151440,0.3608,60271.0,60270.0,0.066344]
[1724163151832,0.3608,60275.0,60274.0,0.066341]
[1724163152040,4.1308,60275.0,60274.0,0.066341]
[1724163152348,4.1309834,60275.0,60274.0,0.066341]
[1724163153550,4.1309834,60275.0,60274.0,0.564061]
[1724163153847,0.00024873,60281.0,60274.0,1.324861]
[1724163154041,0.00024873,60281.0,60280.0,0.427134]
[1724163154433,0.00024873,60281.0,60275.0,0.066339]
[1724163154635,0.3608,60279.0,60278.0,0.066336]
[1724163154836,0.00024873,60281.0,60280.0,0.066334]
[1724163155139,0.00037114,60281.0,60280.0,0.066334]
[1724163155438,0.00037114,60281.0,60280.0,0.564014]
[1724163155643,0.00037114,60281.0,60280.0,0.964014]
[1724163155844,0.07999266,60301.0,60280.0,0.964014]
[1724163155845,0.3608,60292.0,60291.0,0.066322]
[1724163156045,0.3608,60292.0,60280.0,1.14712858]
[1724163156046,0.3608,60293.0,60282.0,0.3608]
[1724163156239,0.3608,60283.0,60272.0,0.066343]
[1724163156439,0.3608,60274.0,60273.0,0.066341]
[1724163156647,0.06452296,60277.0,60271.0,0.3608]
[1724163156842,0.04892818,60276.0,60271.0,0.3608]
[1724163157142,0.00013648,60276.0,60275.0,0.066339]
[1724163157538,0.00013648,60276.0,60275.0,0.964059]
[1724163157739,0.00013648,60276.0,60239.0,0.00614261]
[1724163157740,1.75704142,60276.0,60239.0,0.00614261]
[1724163157939,0.3608,60240.0,60217.0,0.3608]
[1724163158145,0.06524538,60228.0,60225.0,0.066394]
[1724163158450,0.08155672,60235.0,60230.0,0.066389]
[1724163158648,0.08155672,60235.0,60231.0,0.066387]
[1724163158846,0.06515256,60233.0,60232.0,0.73028]
[1724163159047,0.04887122,60238.0,60232.0,1.66108]
[1724163159252,0.0651616,60248.0,60247.0,0.06637]
[1724163159549,0.0488573,60253.0,60250.0,0.066367]
[1724163159747,0.0651616,60257.0,60248.0,0.24839632]
[1724163160053,0.0651616,60257.0,60247.0,0.61019632]
[1724163160054,0.04886017,60254.0,60253.0,0.066363]
[1724163160549,0.00020798,60256.0,60254.0,0.3142471]
[1724163160743,0.00020798,60256.0,60255.0,0.3608]
[1724163161447,0.00020798,60256.0,60241.0,0.3608]
[1724163161448,1.38542974,60256.0,60241.0,0.3608]
[1724163161647,1.38542974,60256.0,60244.0,0.066373]
[1724163161648,0.0488609,60246.0,60244.0,0.066373]
[1724163162147,0.0488609,60246.0,60241.0,0.3608]
[1724163162148,0.0488609,60247.0,60246.0,0.066371]
[1724163162347,0.0488609,60248.0,60246.0,0.3608]
[1724163162645,0.0488609,60248.0,60241.0,0.3608]
[1724163162646,0.62442176,60247.0,60241.0,0.3608]
[1724163162849,0.6895309,60246.0,60241.0,0.3608]
[1724163163058,0.42590914,60244.0,60235.0,0.066383]
[1724163163254,0.42590914,60244.0,60229.0,0.28124]
[1724163163255,0.04884501,60239.0,60234.0,0.3608]
[1724163163455,0.04884501,60237.0,60227.0,0.3608]
[1724163163640,0.04884501,60236.0,60229.0,0.066389]
[1724163163839,0.04884501,60237.0,60233.0,0.3608]
[1724163164159,0.04884501,60237.0,60217.0,0.23224]
[1724163164160,0.3608,60234.0,60230.0,0.24931724]
[1724163164449,0.3608,60244.0,60221.0,0.3608]
[1724163164450,0.00020981,60233.0,60231.0,0.046387]
[1724163164641,0.00020981,60233.0,60231.0,0.25064181]
[1724163164842,0.62463157,60233.0,60230.0,0.066389]
[1724163165051,0.62463157,60233.0,60220.0,0.3608]
[1724163165052,0.3608,60231.0,60220.0,0.3608]
[1724163165253,0.62442176,60225.0,60220.0,0.3608]
[1724163165643,0.62442176,60225.0,60215.0,0.06658399]
[1724163165838,0.62442176,60225.0,60218.0,0.3608]
[1724163166044,0.62442176,60222.0,60218.0,0.3608]
[1724163166247,0.3608,60220.0,60198.0,0.44329]
[1724163166456,0.3608,60220.0,60198.0,0.08249]
[1724163166457,0.3608,60207.0,60198.0,0.08249]
[1724163166747,0.3608,60207.0,60201.0,0.3608]
[1724163166948,0.00024916,60209.0,60199.0,0.25003569]
[1724163167140,0.03137193,60209.0,60207.0,0.066414]
[1724163167448,0.03137193,60209.0,60201.0,0.3608]
[1724163167449,0.03126837,60208.0,60201.0,0.3608]
[1724163167653,0.3608,60204.0,60202.0,0.066419]
[1724163167851,0.0001456,60208.0,60198.0,0.08249]
[1724163167852,0.4001456,60208.0,60203.0,0.066418]
[1724163168150,0.03112277,60204.0,60203.0,0.066418]
[1724163168449,0.03112277,60204.0,60194.0,0.36897207]
[1724163168450,0.3608,60206.0,60187.0,0.3608]
[1724163168638,0.3608,60206.0,60181.0,0.01154466]
[1724163168639,0.0001456,60208.0,60197.0,0.3608]
[1724163168841,0.0001456,60208.0,60189.0,0.066434]
[1724163168842,6e-07,60208.0,60207.0,0.066414]
[1724163169040,7.6e-07,60209.0,60207.0,0.066414]
[1724163169240,7.6e-07,60209.0,60208.0,0.85908]
[1724163169642,7.6e-07,60209.0,60208.0,1.10811566]
[1724163170042,0.00016791,60209.0,60208.0,1.10811566]
[1724163170350,0.00016791,60209.0,60208.0,1.50811566]
[1724163171049,0.00016791,60209.0,60208.0,1.72391566]
[1724163171255,0.00016791,60209.0,60208.0,1.55391566]
[1724163172055,0.3608,60221.0,60208.0,1.72391566]
[1724163172244,0.3608,60221.0,60214.0,0.3608]
[1724163172446,0.3608,60221.0,60208.0,0.00084]
[1724163172447,0.03112277,60209.0,60208.0,0.00084]
[1724163172652,0.066418,60204.0,60192.0,0.00837635]
[1724163172844,0.39192277,60203.0,60192.0,0.00837635]
[1724163173042,3.77009731,60203.0,60192.0,0.00837635]
[1724163173243,3.77009731,60203.0,60175.0,0.066449]
[1724163173244,4.96202008,60203.0,60158.0,0.3608]
[1724163173554,4.96202008,60203.0,60172.0,0.3608]
[1724163173555,0.3608,60189.0,60172.0,0.3608]
[1724163173749,0.3608,60181.0,60178.0,0.066446]
[1724163174050,0.3608,60189.0,60172.0,0.5008]
[1724163174051,0.03098455,60188.0,60179.0,0.00848286]
[1724163174243,0.3608,60184.0,60173.0,0.24852993]
[1724163174452,0.3608,60184.0,60172.0,0.3608]
[1724163174646,0.427235,60189.0,60172.0,0.65670817]
[1724163174843,0.427235,60189.0,60174.0,0.06645]
[1724163174844,0.066435,60189.0,60174.0,0.06645]
[1724163175155,0.066435,60189.0,60175.0,0.61059391]
[1724163175546,0.36104916,60185.0,60177.0,0.066447]
[1724163175745,0.3608,60178.0,60177.0,0.066447]
[1724163176041,0.36104916,60185.0,60178.0,0.49848]
[1724163176243,0.3608,60191.0,60181.0,0.3608]
[1724163176642,0.3608,60183.0,60171.0,0.01219992]
[1724163176857,0.3608,60176.0,60175.0,0.06669816]
[1724163177053,0.00021577,60176.0,60175.0,0.07501002]
[1724163177353,0.00021577,60176.0,60175.0,0.50712102]
[1724163177945,0.00021577,60176.0,60175.0,1.518072]
[1724163178151,0.066423,60199.0,60181.0,0.066442]
[1724163178345,0.03098455,60191.0,60181.0,0.00820217]
[1724163178548,0.03098455,60191.0,60179.0,0.066445]
[1724163178743,0.7608,60193.0,60175.0,0.36916249]
[1724163178744,0.3608,60193.0,60175.0,0.36916249]
[1724163178945,0.7608,60193.0,60182.0,0.24966545]
[1724163179245,0.7608,60193.0,60182.0,0.00828939]
[1724163179559,0.7608,60193.0,60191.0,0.066432]
[1724163179560,0.3608,60193.0,60191.0,0.066432]
[1724163180047,0.3608,60193.0,60192.0,0.4984]
[1724163180249,0.3608,60214.0,60192.0,1.66956181]
[1724163180547,0.3608,60214.0,60212.0,0.066409]
[1724163180952,0.3608,60222.0,60213.0,0.49824]
[1724163181149,0.3608,60222.0,60220.0,0.066399]
[1724163181562,0.3608,60222.0,60221.0,0.49816]
[1724163182253,0.36104916,60227.0,60225.0,0.066394]
[1724163182446,0.00024916,60227.0,60225.0,0.066394]
[1724163182646,0.00024916,60227.0,60226.0,0.49812]
[1724163182847,0.00024916,60227.0,60226.0,0.74674283]
[1724163183246,0.00024916,60227.0,60226.0,0.49812]
[1724163183447,0.00024916,60227.0,60218.0,0.23248]
[1724163183448,0.066396,60224.0,60212.0,0.00826198]
[1724163183652,0.7216,60216.0,60187.0,0.0493]
[1724163183854,0.066427,60196.0,60179.0,0.066445]
[1724163184061,0.3608,60190.0,60177.0,0.0083488]
[1724163184251,0.3608,60190.0,60182.0,0.2498261]
[1724163184448,0.42722,60202.0,60189.0,0.066434]
[1724163184654,0.42722,60202.0,60179.0,0.3608]
[1724163184655,0.3608,60202.0,60192.0,0.3608]
[1724163184857,0.00017797,60201.0,60198.0,0.066424]
[1724163185158,0.00017797,60201.0,60193.0,0.2498261]
[1724163185466,0.00017797,60201.0,60185.0,0.3608]
[1724163185765,0.00017797,60201.0,60194.0,0.066428]
[1724163185766,0.40017797,60201.0,60194.0,0.066428]
[1724163185966,0.3608,60195.0,60189.0,0.00024916]
[1724163186149,0.00017797,60201.0,60195.0,0.24892657]
[1724163186346,0.00017797,60201.0,60198.0,0.3608]
[1724163186559,0.3608,60218.0,60199.0,0.49836]
[1724163186748,3.77,60217.0,60199.0,0.38892657]
[1724163186954,3.77,60217.0,60208.0,0.3608]
[1724163187154,0.3608,60218.0,60216.0,0.066403]
[1724163188164,0.00024916,60223.0,60222.0,0.066398]
[1724163188662,0.00024916,60223.0,60222.0,0.81334552]
[1724163188859,0.3608,60232.0,60231.0,0.066388]
[1724163189066,0.3608,60241.0,60222.0,0.24878752]
[1724163189067,0.3608,60234.0,60222.0,0.24878752]
[1724163189253,0.066386,60233.0,60221.0,0.3608]
[1724163189455,0.7608,60234.0,60225.0,0.066394]
[1724163189756,0.7608,60234.0,60222.0,0.25008098]
[1724163190072,0.3608,60223.0,60220.0,0.0664]
[1724163190358,0.3608,60223.0,60216.0,0.066404]
[1724163190564,0.3608,60223.0,60213.0,0.3608]
[1724163190766,0.7608,60223.0,60213.0,0.3608]
[1724163190958,0.7608,60223.0,60216.0,0.066404]
[1724163191156,0.7608,60223.0,60222.0,0.00024916]
[1724163191660,0.3608,60223.0,60222.0,0.00024916]
[1724163191961,0.3608,60234.0,60222.0,0.74915457]
[1724163192152,0.3608,60234.0,60222.0,0.25099457]
[1724163192153,3.77,60233.0,60222.0,0.25099457]
[1724163192355,0.7608,60234.0,60233.0,0.066386]
[1724163192657,0.7608,60234.0,60225.0,0.3608]
[1724163192857,0.7608,60234.0,60227.0,0.066392]
[1724163193069,0.7608,60234.0,60225.0,0.3608]
[1724163193258,0.00024916,60236.0,60225.0,0.3608]
[1724163193458,0.00024916,60236.0,60235.0,0.066383]
[1724163193662,0.00024916,60236.0,60235.0,0.427183]
[1724163193964,0.00024916,60236.0,60235.0,0.67483766]
[1724163194168,0.00024916,60236.0,60235.0,1.17287766]
[1724163194375,0.00024916,60236.0,60235.0,0.81207766]
[1724163194966,0.00024916,60236.0,60235.0,0.066383]
[1724163195354,0.00024916,60236.0,60235.0,0.564423]
[1724163195555,0.00024916,60236.0,60235.0,0.066383]
[1724163195870,0.40024916,60236.0,60235.0,0.066383]
[1724163196363,0.40024916,60236.0,60225.0,0.3608]
[1724163196564,0.42719,60230.0,60222.0,0.00024916]
[1724163196766,0.3608,60225.0,60224.0,0.066395]
[1724163196967,3.77,60225.0,60224.0,0.066395]
[1724163197171,3.77,60225.0,60224.0,0.564515]
[1724163197469,0.00024916,60236.0,60235.0,0.066383]
[1724163197663,0.40024916,60236.0,60235.0,0.066383]
[1724163197859,0.40024916,60236.0,60224.0,0.60997955]
[1724163197860,0.066386,60233.0,60224.0,0.3608]
[1724163198066,0.3608,60231.0,60224.0,0.066395]
[1724163198566,0.7608,60231.0,60224.0,0.066395]
[1724163198762,0.7608,60231.0,60222.0,0.00024916]
[1724163198763,0.3608,60226.0,60222.0,0.00024916]
[1724163199068,0.7608,60226.0,60222.0,0.00024916]
[1724163200063,0.04853488,60231.0,60230.0,0.066389]
[1724163200361,4.19755831,60236.0,60225.0,0.066394]
[1724163200362,4.13104916,60236.0,60227.0,0.3608]
[1724163200563,4.53104916,60236.0,60223.0,0.3608]
[1724163200762,4.53104916,60236.0,60235.0,0.066383]
[1724163200965,4.53104916,60236.0,60231.0,0.066388]
[1724163201166,4.53104916,60236.0,60235.0,0.066383]
[1724163202878,4.53104916,60236.0,60222.0,0.00024916]
[1724163203175,0.3608,60227.0,60222.0,0.00024916]
[1724163203472,0.3608,60227.0,60226.0,0.066393]
[1724163203665,4.5308,60227.0,60222.0,0.00024916]
[1724163204070,0.04853488,60231.0,60230.0,0.066389]
[1724163204273,0.3608,60234.0,60223.0,0.24809192]
[1724163204274,0.3608,60234.0,60226.0,0.3608]
[1724163204462,0.3608,60228.0,60222.0,0.00024916]
[1724163204666,3.77132,60233.0,60232.0,0.066387]
[1724163204876,3.77,60233.0,60232.0,0.066387]
[1724163205172,0.3608,60234.0,60223.0,0.427196]
[1724163205173,0.3608,60234.0,60233.0,0.066386]
[1724163205365,0.00024916,60236.0,60235.0,0.066383]
[1724163205771,0.00024916,60236.0,60235.0,0.564423]
[1724163205979,0.40024916,60236.0,60235.0,0.066383]
[1724163206366,0.40024916,60236.0,60232.0,0.066386]
[1724163206563,0.3608,60233.0,60232.0,0.066386]
[1724163206767,0.40024916,60236.0,60235.0,0.066383]
[1724163207374,0.40024916,60236.0,60232.0,0.066387]
[1724163207578,0.3608,60234.0,60232.0,0.066387]
[1724163207779,0.3608,60234.0,60233.0,0.066386]
[1724163207965,0.00024916,60236.0,60235.0,0.066383]
[1724163209978,0.00024916,60236.0,60235.0,1.17421471]
[1724163210274,0.00024916,60236.0,60235.0,1.22321933]
[1724163210468,0.00024916,60236.0,60235.0,1.17421471]
[1724163211073,0.00024916,60236.0,60235.0,1.32421471]
[1724163211272,0.00024916,60236.0,60235.0,1.39059771]
[1724163211570,0.00024916,60236.0,60235.0,1.32421471]
[1724163211767,3.77,60244.0,60243.0,0.066375]
[1724163211982,0.3608,60251.0,60242.0,0.3608]
[1724163212173,0.7608,60251.0,60243.0,0.24939787]
[1724163212369,0.7608,60251.0,60250.0,0.066367]
[1724163212574,0.7608,60251.0,60250.0,0.07467286]
[1724163212575,0.3608,60251.0,60250.0,0.07467286]
[1724163212878,0.3608,60251.0,60250.0,0.066367]
[1724163213583,0.3608,60251.0,60250.0,0.07451687]
[1724163214271,0.3608,60256.0,60250.0,0.07451687]
[1724163214272,3.77,60254.0,60253.0,0.066364]
[1724163214475,0.3608,60256.0,60248.0,0.3608]
[1724163214476,0.4,60256.0,60248.0,0.3608]
[1724163214676,0.3608,60251.0,60250.0,0.066367]
[1724163215378,0.3608,60255.0,60249.0,0.3608]
[1724163215767,0.7608,60255.0,60249.0,0.3608]
[1724163215976,0.7608,60255.0,60253.0,0.066363]
[1724163216883,0.3608,60255.0,60253.0,0.066363]
[1724163217080,0.7608,60255.0,60252.0,0.04946254]
[1724163217382,0.7608,60255.0,60254.0,0.066362]
[1724163217579,0.8099157,60255.0,60254.0,0.066362]
[1724163218081,0.7608,60255.0,60252.0,0.066364]
[1724163218282,0.80990751,60255.0,60252.0,0.066364]
[1724163218586,0.80990751,60255.0,60253.0,0.066363]
[1724163218886,0.80990751,60255.0,60254.0,0.066362]
[1724163219776,0.80990751,60255.0,60246.0,0.23236]
[1724163219777,0.7608,60255.0,60248.0,0.00828042]
[1724163220081,0.80990751,60255.0,60246.0,0.23236]
[1724163220481,3.77,60254.0,60253.0,0.066364]
[1724163220781,3.77,60254.0,60253.0,0.07470914]
[1724163220970,4.17,60254.0,60253.0,0.066364]
[1724163221378,3.81910751,60254.0,60253.0,0.066364]
[1724163221784,3.77,60254.0,60253.0,0.066364]
[1724163223480,3.77,60254.0,60252.0,0.01983231]
[1724163223481,0.00024916,60257.0,60256.0,0.06636]
[1724163223782,3.77024916,60257.0,60256.0,0.06636]
[1724163224186,3.77024916,60257.0,60256.0,0.0746181]
[1724163225678,0.00024916,60257.0,60256.0,0.5724981]
[1724163225875,0.00024916,60257.0,60256.0,0.06636]
[1724163226079,0.00024916,60257.0,60256.0,0.07467784]
[1724163226474,0.00024916,60257.0,60256.0,0.57255784]
[1724163226676,0.00024916,60257.0,60256.0,0.63891784]
[1724163226981,0.00024916,60257.0,60256.0,0.62202038]
[1724163227176,0.00024916,60257.0,60256.0,0.57255784]
[1724163228673,0.00024916,60257.0,60256.0,0.07467784]
[1724163228877,0.00024916,60257.0,60256.0,0.57255784]
[1724163229078,0.00024916,60257.0,60256.0,0.63891784]
[1724163229881,3.77,60269.0,60256.0,0.62202038]
[1724163230082,0.3608,60277.0,60268.0,0.3608]
[1724163230278,0.7608,60277.0,60276.0,0.066338]
[1724163230478,4.5308,60277.0,60276.0,0.066338]
[1724163231079,4.1308,60277.0,60276.0,0.066338]
[1724163231690,0.3608,60277.0,60276.0,0.066338]
[1724163232003,0.00024895,60283.0,60282.0,0.132664]
[1724163232284,0.3608,60298.0,60283.0,0.06633]
[1724163232481,0.3608,60298.0,60297.0,0.066315]
[1724163232676,0.7608,60298.0,60291.0,0.066321]
[1724163232877,0.3608,60293.0,60291.0,0.066321]
[1724163233085,0.7608,60293.0,60291.0,0.066321]
[1724163233283,0.3608,60293.0,60291.0,0.066321]
[1724163233884,0.7608,60293.0,60291.0,0.066321]
[1724163234378,0.3608,60293.0,60291.0,0.066321]
[1724163234689,0.3608,60293.0,60291.0,0.07781006]
[1724163235282,3.77,60292.0,60291.0,0.07781006]
[1724163235991,0.3608,60293.0,60291.0,0.07781006]
[1724163236495,0.3608,60293.0,60292.0,0.066321]
[1724163237180,0.3608,60293.0,60292.0,0.07445558]
[1724163238596,0.3608,60293.0,60287.0,0.066326]
[1724163238787,0.3608,60288.0,60287.0,0.00825409]
[1724163238988,0.3608,60288.0,60286.0,0.01159447]
[1724163239183,0.7608,60288.0,60286.0,0.01159447]
[1724163239383,1.1608,60288.0,60270.0,0.066344]
[1724163239592,0.3608,60273.0,60263.0,0.23224]
[1724163239783,0.3608,60266.0,60263.0,0.23224]
[1724163239992,0.3608,60266.0,60265.0,0.06654671]
[1724163240297,0.3608,60266.0,60265.0,0.00019671]
[1724163240486,4.1308,60266.0,60265.0,0.00019671]
[1724163241594,4.5308,60266.0,60265.0,0.00019671]
[1724163243088,4.597149,60266.0,60265.0,0.00019671]
[1724163243288,0.066352,60264.0,60259.0,0.00024895]
[1724163243592,4.5308,60266.0,60259.0,0.00024895]
[1724163243593,0.3608,60260.0,60259.0,0.00024895]
[1724163244394,0.36099671,60260.0,60259.0,0.06660595]
[1724163245093,0.36099671,60260.0,60259.0,0.70444595]
[1724163245395,0.36104895,60272.0,60259.0,0.70444595]
[1724163245396,0.00024895,60272.0,60260.0,0.49784]
[1724163245697,0.04910751,60287.0,60272.0,0.066342]
[1724163245892,0.3608,60291.0,60278.0,0.5375]
[1724163246088,0.04910751,60292.0,60278.0,0.5375]
[1724163246089,0.04910751,60292.0,60290.0,0.066323]
[1724163246286,0.08155672,60304.0,60290.0,0.066323]
[1724163246287,0.3608,60301.0,60296.0,0.066315]
[1724163246587,0.3608,60301.0,60292.0,0.3608]
[1724163246786,0.7608,60301.0,60292.0,0.3608]
[1724163247186,0.7608,60301.0,60293.0,0.00838428]
[1724163247396,0.7608,60301.0,60292.0,0.36104895]
[1724163247899,0.7608,60301.0,60292.0,0.43580716]
[1724163249194,0.7608,60301.0,60292.0,0.36104895]
[1724163249700,0.066313,60300.0,60293.0,0.00821457]
[1724163249900,0.066313,60300.0,60292.0,0.36104895]
[1724163250092,0.466313,60300.0,60292.0,0.36104895]
[1724163250295,0.4,60300.0,60296.0,0.066316]
[1724163250496,0.4,60300.0,60299.0,0.3608]
[1724163250698,0.4,60300.0,60296.0,0.066316]
[1724163251603,0.4,60300.0,60292.0,0.36915406]
[1724163251795,3.77,60299.0,60293.0,0.06632]
[1724163251991,3.77,60299.0,60297.0,0.3608]
[1724163252197,4.17,60299.0,60297.0,0.3608]
[1724163252894,3.77,60299.0,60297.0,0.427115]
[1724163253125,0.42590914,60311.0,60297.0,0.427115]
[1724163253126,0.00931322,60317.0,60298.0,1.28472302]
[1724163253306,0.00931322,60323.0,60314.0,0.3608]
[1724163253605,0.066289,60322.0,60314.0,0.3608]
[1724163253799,4.13216,60326.0,60314.0,0.3608]
[1724163254002,0.06629,60321.0,60314.0,0.3608]
[1724163254307,4.5308,60326.0,60314.0,0.3608]
[1724163254308,0.3608,60320.0,60314.0,0.3608]
[1724163254600,0.3608,60320.0,60307.0,0.3608]
[1724163254801,0.4,60320.0,60314.0,0.00024874]
[1724163254991,0.4,60320.0,60319.0,0.066292]
[1724163255195,4.19730915,60326.0,60319.0,0.066292]
[1724163255196,0.36220001,60326.0,60319.0,0.49736]
[1724163255396,0.36220001,60326.0,60324.0,0.066286]
[1724163255397,0.3608,60326.0,60324.0,0.066286]
[1724163255606,0.3608,60326.0,60317.0,0.5375]
[1724163255791,0.7608,60326.0,60322.0,0.066288]
[1724163255992,0.7608,60326.0,60317.0,0.5375]
[1724163256400,0.7608,60326.0,60314.0,0.00024874]
[1724163256401,0.42709,60321.0,60314.0,0.00024874]
[1724163256607,0.3608,60321.0,60314.0,0.00024874]
[1724163256798,0.7608,60321.0,60314.0,0.00024874]
[1724163256998,0.3608,60321.0,60320.0,0.066291]
[1724163257199,0.4,60321.0,60314.0,0.01148968]
[1724163257392,0.066296,60315.0,60314.0,0.00024874]
[1724163257591,0.066296,60315.0,60300.0,0.5375]
[1724163257592,0.3608,60316.0,60300.0,0.5375]
[1724163257801,0.3608,60311.0,60305.0,0.066307]
[1724163258004,3.77,60310.0,60305.0,0.066307]
[1724163258209,3.77,60310.0,60305.0,0.008493]
[1724163258398,4.17,60310.0,60300.0,0.5375]
[1724163258605,3.77,60310.0,60306.0,0.8983]
[1724163258807,3.77,60310.0,60309.0,0.066303]
[1724163259000,3.77,60310.0,60309.0,0.57214234]
[1724163259507,0.3608,60322.0,60310.0,0.49744]
[1724163259697,0.4,60322.0,60321.0,0.427089]
[1724163259899,3.77,60329.0,60321.0,0.3608]
[1724163260099,4.17,60329.0,60326.0,0.066283]
[1724163260397,4.17,60329.0,60321.0,0.3608]
[1724163260600,4.17,60329.0,60325.0,0.066285]
[1724163260799,4.17,60329.0,60326.0,0.066283]
[1724163261510,0.066282,60328.0,60316.0,0.01126852]
[1724163261803,4.17132,60329.0,60321.0,0.00024874]
[1724163262009,4.17,60329.0,60321.0,0.00024874]
[1724163262197,4.17,60329.0,60328.0,0.066282]
[1724163263012,3.77,60329.0,60328.0,0.066282]
[1724163263508,4.17,60329.0,60328.0,0.066282]
[1724163263710,3.77,60329.0,60328.0,0.066282]
[1724163264911,4.5308,60329.0,60321.0,0.00024874]
[1724163265111,0.3608,60323.0,60321.0,0.00024874]
[1724163265613,0.827088,60323.0,60321.0,0.00024874]
[1724163265817,0.066288,60322.0,60321.0,0.00024874]
[1724163266105,0.066288,60322.0,60308.0,0.23208]
[1724163266106,0.06629,60321.0,60315.0,0.066296]
[1724163266306,3.836291,60320.0,60315.0,0.066296]
[1724163266501,4.17,60320.0,60309.0,0.3608]
[1724163266704,4.17,60320.0,60319.0,0.066292]
[1724163267004,3.77,60320.0,60319.0,0.066292]
[1724163267313,3.77,60320.0,60319.0,0.07463441]
[1724163267498,3.77,60320.0,60319.0,0.43543441]
[1724163268307,0.00024874,60326.0,60325.0,0.066285]
[1724163268514,0.40024874,60326.0,60325.0,0.066285]
[1724163268822,0.00024874,60326.0,60325.0,0.066285]
[1724163269004,0.08155672,60348.0,60325.0,0.066285]
[1724163269005,0.3608,60349.0,60338.0,0.06627]
[1724163269211,0.7608,60349.0,60337.0,0.3608]
[1724163269512,0.7608,60349.0,60348.0,0.06626]
[1724163269704,0.4,60349.0,60348.0,0.06626]
[1724163270214,0.4,60349.0,60345.0,0.066263]
[1724163270516,0.3608,60348.0,60345.0,0.066263]
[1724163270718,0.3608,60348.0,60342.0,0.00024874]
[1724163270920,0.7608,60348.0,60345.0,0.066263]
[1724163271309,0.7608,60348.0,60342.0,0.00024874]
[1724163271620,0.7608,60348.0,60347.0,0.066261]
[1724163271918,0.3608,60348.0,60347.0,0.066261]
[1724163272104,0.3608,60353.0,60352.0,0.066255]
[1724163272418,0.3608,60353.0,60348.0,0.066259]
[1724163272614,0.7608,60353.0,60348.0,0.066259]
[1724163273010,0.7608,60353.0,60347.0,0.06626]
[1724163273205,0.7608,60353.0,60343.0,0.3608]
[1724163273405,0.7608,60353.0,60352.0,0.066255]
[1724163275429,0.7608,60353.0,60343.0,0.3608]